bitfinex/quotes_BTCUSD_20241025
["timestamp","ask_amount","ask_price","bid_price","bid_amount"]
[1729886164550,0.34837211,66952.0,66951.0,0.001644]
[1729886164745,0.34837211,66952.0,66951.0,0.006644]
[1729886164955,0.34837211,66952.0,66951.0,0.001644]
[1729886166041,0.30358932,66952.0,66951.0,0.001644]
[1729886166269,0.34837211,66952.0,66951.0,0.001644]
[1729886167957,0.30358932,66952.0,66951.0,0.001644]
[1729886168385,0.34837211,66952.0,66951.0,0.001644]
[1729886168884,0.49887592,66952.0,66951.0,0.001644]
[1729886169099,0.45409313,66952.0,66951.0,0.001644]
[1729886169992,0.52126732,66952.0,66951.0,0.001644]
[1729886170856,0.30358932,66952.0,66951.0,0.001644]
[1729886171091,0.55422932,66960.0,66952.0,0.005]
[1729886171092,0.04478859,66957.0,66952.0,0.005]
[1729886171345,0.04478859,66959.0,66956.0,0.005]
[1729886171603,0.04478859,66961.0,66956.0,0.005]
[1729886171815,0.19412559,66963.0,66957.0,0.00467369]
[1729886172043,0.149339,66962.0,66956.0,0.005]
[1729886172263,0.19412759,66962.0,66957.0,0.00467369]
[1729886172488,0.149346,66959.0,66956.0,0.005]
[1729886172951,0.15422932,66960.0,66956.0,0.005]
[1729886173418,0.149345,66959.0,66956.0,0.005]
[1729886174337,0.45291832,66960.0,66956.0,0.005]
[1729886174338,0.49769793,66960.0,66956.0,0.005]
[1729886174559,0.149345,66959.0,66956.0,0.005]
[1729886174997,0.19412461,66959.0,66956.0,0.005]
[1729886175292,0.149348,66958.0,66956.0,0.005]
[1729886175519,0.19412561,66959.0,66956.0,0.005]
[1729886175751,0.149346,66959.0,66956.0,0.005]
[1729886175975,0.15422932,66960.0,66956.0,0.005]
[1729886176666,0.04477961,66963.0,66958.0,0.005]
[1729886176888,0.37384589,66963.0,66960.0,0.005]
[1729886177339,0.37384589,66963.0,66958.0,0.005]
[1729886177340,0.37873821,66961.0,66958.0,0.005]
[1729886177561,0.14934,66961.0,66960.0,0.005]
[1729886177834,0.149349,66957.0,66956.0,0.006644]
[1729886178062,0.04478261,66960.0,66959.0,0.154345]
[1729886178298,0.149329,66966.0,66965.0,0.005]
[1729886178526,0.34342861,66969.0,66965.0,0.005]
[1729886178753,0.149329,66966.0,66965.0,0.005]
[1729886179242,0.34342861,66969.0,66965.0,0.005]
[1729886179486,0.149329,66966.0,66965.0,0.005]
[1729886180374,0.298654,66967.0,66958.0,0.149346]
[1729886180375,0.149331,66965.0,66964.0,0.005]
[1729886182609,0.298646,66969.0,66964.0,0.005]
[1729886182842,0.14933,66966.0,66964.0,0.005]
[1729886183323,0.14933,66966.0,66965.0,0.005]
[1729886184693,0.447988,66966.0,66965.0,0.005]
[1729886185364,0.149329,66966.0,66965.0,0.005]
[1729886186694,0.298659,66966.0,66965.0,0.005]
[1729886186930,0.447988,66966.0,66965.0,0.005]
[1729886187187,0.04474821,66971.0,66965.0,0.005]
[1729886187188,0.34338621,66971.0,66965.0,0.005]
[1729886187403,0.149327,66967.0,66965.0,0.005]
[1729886188060,0.298645,66969.0,66965.0,0.005]
[1729886188343,0.149329,66967.0,66965.0,0.005]
[1729886188560,0.149326,66968.0,66965.0,0.005]
[1729886188797,0.149327,66967.0,66965.0,0.005]
[1729886189470,0.298645,66969.0,66965.0,0.005]
[1729886189702,0.149328,66967.0,66965.0,0.005]
[1729886189918,0.000822,66973.0,66960.0,0.15232855]
[1729886189919,0.000822,66973.0,66972.0,0.005]
[1729886190143,0.150135,66973.0,66972.0,0.005]
[1729886191093,0.298632,66972.0,66966.0,0.00467284]
[1729886191304,0.000822,66973.0,66964.0,0.005]
[1729886191305,0.149331,66965.0,66964.0,0.005]
[1729886192451,0.149338,66962.0,66961.0,0.005]
[1729886192905,0.298667,66964.0,66963.0,0.005]
[1729886193106,0.149337,66963.0,66962.0,0.005]
[1729886193546,0.149337,66963.0,66961.0,0.005]
[1729886193772,0.149338,66962.0,66961.0,0.005]
[1729886194013,0.298654,66967.0,66963.0,0.005]
[1729886194244,0.149333,66964.0,66963.0,0.005]
[1729886195572,0.298671,66964.0,66963.0,0.005]
[1729886195785,0.448004,66964.0,66963.0,0.005]
[1729886198713,0.149336,66963.0,66962.0,0.005]
[1729886198965,0.3750127,66963.0,66957.0,0.00467348]
[1729886199190,0.30357832,66957.0,66951.0,0.001644]
[1729886200595,0.45408213,66957.0,66951.0,0.001644]
[1729886200827,0.49879917,66957.0,66951.0,0.001644]
[1729886201497,0.89879917,66957.0,66951.0,0.001644]
[1729886201499,1.00458594,66957.0,66951.0,0.001644]
[1729886201728,1.00958594,66957.0,66951.0,0.001644]
[1729886201966,1.17466237,66957.0,66951.0,0.001644]
[1729886203151,0.71781864,66952.0,66951.0,0.001644]
[1729886203384,0.149387,66940.0,66939.0,0.000822]
[1729886203604,0.78404945,66940.0,66939.0,0.000822]
[1729886204079,0.61915285,66940.0,66939.0,0.000822]
[1729886204524,0.45412013,66940.0,66939.0,0.000822]
[1729886205411,0.65301802,66940.0,66939.0,0.000822]
[1729886206596,0.60834945,66940.0,66939.0,0.000822]
[1729886207262,0.45412013,66940.0,66939.0,0.000822]
[1729886208181,0.60834945,66940.0,66939.0,0.000822]
[1729886208426,0.149407,66931.0,66930.0,0.000845]
[1729886208655,0.29991081,66931.0,66930.0,0.000845]
[1729886223656,0.149407,66931.0,66930.0,0.000845]
[1729886223865,0.30363632,66931.0,66930.0,0.000845]
[1729886224077,0.45414013,66931.0,66930.0,0.000845]
[1729886224740,0.53534013,66931.0,66930.0,0.000845]
[1729886226766,0.45414013,66931.0,66930.0,0.000845]
[1729886229288,0.29991081,66931.0,66930.0,0.000845]
[1729886229536,0.45414013,66931.0,66930.0,0.000845]
[1729886230412,0.30363632,66931.0,66930.0,0.000845]
[1729886231283,0.45414013,66931.0,66930.0,0.000845]
[1729886232650,0.30363632,66931.0,66930.0,0.000845]
[1729886234461,0.30363632,66931.0,66930.0,0.00552117]
[1729886235641,0.26996795,66931.0,66930.0,0.00552117]
[1729886236112,0.001644,66938.0,66933.0,0.005]
[1729886236337,0.001644,66938.0,66930.0,0.00552117]
[1729886236338,0.001644,66938.0,66937.0,0.328894]
[1729886236562,0.001644,66938.0,66937.0,0.33357017]
[1729886236563,0.00083418,66938.0,66937.0,0.33357017]
[1729886236795,0.00083418,66938.0,66937.0,0.34105108]
[1729886237240,0.22450889,66942.0,66939.0,0.01215708]
[1729886237478,0.151017,66947.0,66941.0,0.005]
[1729886237697,0.151017,66947.0,66943.0,0.0791]
[1729886237698,0.001644,66947.0,66943.0,0.0791]
[1729886237935,0.001644,66947.0,66944.0,0.10835708]
[1729886238149,0.001644,66947.0,66945.0,0.01215708]
[1729886238385,0.001644,66947.0,66946.0,0.01215708]
[1729886238592,0.001644,66947.0,66946.0,0.00967617]
[1729886239292,0.001644,66947.0,66946.0,0.23815017]
[1729886239501,0.001644,66947.0,66946.0,0.49733288]
[1729886241395,0.001644,66947.0,66946.0,0.48985398]
[1729886242483,0.001644,66947.0,66946.0,0.48985173]
[1729886243400,0.001644,66947.0,66946.0,0.18497392]
[1729886244739,0.001644,66947.0,66946.0,0.1803]
[1729886245193,0.151015,66947.0,66946.0,0.1803]
[1729886245862,0.001644,66947.0,66946.0,0.1803]
[1729886246076,0.001644,66947.0,66946.0,0.0841]
[1729886247647,0.001644,66947.0,66946.0,0.233474]
[1729886252217,0.151015,66947.0,66946.0,0.005]
[1729886253633,0.151015,66947.0,66932.0,0.01247915]
[1729886253634,0.149378,66944.0,66943.0,0.005]
[1729886253870,0.15422932,66944.0,66943.0,0.005]
[1729886254322,0.001644,66947.0,66946.0,0.005]
[1729886254570,0.37552389,66947.0,66946.0,0.005]
[1729886254793,0.001644,66947.0,66946.0,0.005]
[1729886255020,0.151015,66947.0,66946.0,0.005]
[1729886256219,0.151015,66947.0,66937.0,0.001644]
[1729886256220,0.15214781,66947.0,66939.0,0.005]
[1729886256448,0.15214781,66947.0,66938.0,0.005]
[1729886256449,0.149389,66939.0,66938.0,0.005]
[1729886257380,0.149389,66939.0,66937.0,0.001644]
[1729886257381,0.149391,66938.0,66937.0,0.001644]
[1729886257615,0.29989481,66938.0,66937.0,0.001644]
[1729886258312,0.54989481,66938.0,66937.0,0.001644]
[1729886258540,0.64769481,66938.0,66937.0,0.001644]
[1729886261822,0.77347493,66938.0,66937.0,0.001644]
[1729886262542,0.81803172,66938.0,66930.0,0.000845]
[1729886262780,0.73753632,66931.0,66930.0,0.000845]
[1729886263019,0.88804013,66931.0,66930.0,0.000845]
[1729886263452,0.149441,66916.0,66915.0,0.22450889]
[1729886263905,0.149441,66916.0,66914.0,0.005]
[1729886263906,0.298882,66916.0,66914.0,0.005]
[1729886264139,0.149443,66915.0,66914.0,0.005]
[1729886265260,0.15422932,66918.0,66914.0,0.005]
[1729886265485,0.149428,66922.0,66916.0,0.005]
[1729886265709,0.22450889,66924.0,66917.0,0.0761]
[1729886265991,0.149425,66923.0,66917.0,0.0761]
[1729886266224,0.45307432,66925.0,66924.0,0.005]
[1729886266225,0.15422932,66925.0,66924.0,0.005]
[1729886266436,0.30364932,66925.0,66924.0,0.005]
[1729886266858,0.15422932,66925.0,66924.0,0.005]
[1729886267074,0.30364932,66925.0,66924.0,0.005]
[1729886267291,0.08911358,66945.0,66927.0,0.005]
[1729886267292,0.15422932,66932.0,66927.0,0.005]
[1729886267503,0.149414,66928.0,66927.0,0.005]
[1729886268367,0.298815,66931.0,66927.0,0.005]
[1729886268578,0.14941,66930.0,66928.0,0.005]
[1729886268830,0.149412,66929.0,66928.0,0.005]
[1729886271706,0.149412,66929.0,66928.0,0.006644]
[1729886272592,0.15422932,66932.0,66928.0,0.006644]
[1729886272798,0.149405,66932.0,66931.0,0.005]
[1729886273013,0.15422932,66937.0,66931.0,0.005]
[1729886273014,0.298803,66934.0,66931.0,0.005]
[1729886273222,0.149405,66932.0,66931.0,0.005]
[1729886274342,0.298797,66935.0,66930.0,0.005]
[1729886274343,0.149407,66931.0,66930.0,0.005]
[1729886275772,0.4,66944.0,66935.0,0.005]
[1729886276012,0.4,66944.0,66943.0,0.15438]
[1729886276472,0.001644,66947.0,66943.0,0.15438]
[1729886276473,0.001644,66947.0,66946.0,0.154374]
[1729886276727,0.001644,66947.0,66946.0,0.005]
[1729886276968,0.001644,66947.0,66946.0,0.154374]
[1729886277219,0.001644,66947.0,66946.0,0.005]
[1729886277466,0.001644,66947.0,66946.0,0.154374]
[1729886277688,0.001644,66947.0,66946.0,0.005]
[1729886277928,0.001644,66947.0,66946.0,0.154374]
[1729886278834,0.001644,66947.0,66946.0,0.005]
[1729886279578,0.001644,66947.0,66946.0,0.00967417]
[1729886279788,0.001644,66947.0,66946.0,0.154374]
[1729886280017,0.001644,66947.0,66946.0,0.00967417]
[1729886280894,0.151015,66947.0,66946.0,0.00967417]
[1729886281105,0.001644,66947.0,66946.0,0.005]
[1729886283183,0.001644,66947.0,66946.0,0.01167414]
[1729886283870,0.001644,66947.0,66946.0,0.007]
[1729886284088,0.001644,66947.0,66946.0,0.01167414]
[1729886284303,0.001644,66947.0,66946.0,0.005]
[1729886285250,0.001644,66947.0,66946.0,0.00967414]
[1729886285478,0.001644,66947.0,66946.0,0.005]
[1729886290029,0.151015,66947.0,66946.0,0.005]
[1729886290463,0.001644,66947.0,66946.0,0.005]
[1729886291386,0.30524432,66947.0,66946.0,0.005]
[1729886291668,0.149378,66944.0,66943.0,0.005]
[1729886291879,0.30360732,66944.0,66943.0,0.005]
[1729886292741,0.149375,66946.0,66945.0,0.005]
[1729886293628,0.149385,66941.0,66940.0,0.005]
[1729886293847,0.149391,66938.0,66937.0,0.005]
[1729886294060,0.30362032,66938.0,66937.0,0.005]
[1729886294776,0.149394,66937.0,66936.0,0.005]
[1729886294999,0.29878,66939.0,66933.0,0.005]
[1729886295000,0.298793,66936.0,66933.0,0.005]
[1729886295226,0.298793,66936.0,66928.0,0.001644]
[1729886295227,0.44789706,66936.0,66935.0,0.005]
[1729886295455,0.149398,66935.0,66934.0,0.005]
[1729886296119,0.30362732,66935.0,66934.0,0.005]
[1729886296543,0.149403,66933.0,66932.0,0.005]
[1729886296781,0.30363232,66933.0,66932.0,0.005]
[1729886298871,0.149395,66937.0,66932.0,0.005]
[1729886299083,0.149403,66933.0,66932.0,0.005]
[1729886299530,0.52331489,66933.0,66931.0,0.005]
[1729886299778,0.149405,66932.0,66931.0,0.005]
[1729886306183,0.37391389,66932.0,66931.0,0.005]
[1729886306375,0.149405,66932.0,66931.0,0.005]
[1729886306592,0.149405,66932.0,66930.0,0.006644]
[1729886306593,0.149407,66931.0,66930.0,0.006644]
[1729886307065,0.5244197,66931.0,66930.0,0.001644]
[1729886307333,0.84952351,66931.0,66930.0,0.001644]
[1729886307548,0.85452351,66931.0,66930.0,0.001644]
[1729886307807,0.47451081,66931.0,66930.0,0.001644]
[1729886308043,0.62874013,66931.0,66930.0,0.001644]
[1729886309239,1.02874013,66931.0,66930.0,0.001644]
[1729886311249,1.18796945,66931.0,66930.0,0.001644]
[1729886311467,1.44194764,66931.0,66930.0,0.001644]
[1729886311705,0.149436,66918.0,66917.0,0.001644]
[1729886311924,0.29993981,66918.0,66917.0,0.001644]
[1729886314186,0.549436,66918.0,66917.0,0.006644]
[1729886315315,0.25,66914.0,66905.0,0.005]
[1729886315534,0.30367632,66913.0,66911.0,0.005]
[1729886316631,0.30367632,66913.0,66912.0,0.005845]
[1729886317527,0.15422932,66913.0,66912.0,0.005845]
[1729886317769,0.30367632,66913.0,66912.0,0.005845]
[1729886317992,0.15422932,66913.0,66912.0,0.005845]
[1729886318238,0.30367632,66913.0,66912.0,0.005845]
[1729886321902,0.15422932,66913.0,66912.0,0.005845]
[1729886322352,0.15422932,66913.0,66912.0,0.085545]
[1729886324880,0.30367632,66913.0,66912.0,0.085545]
[1729886325099,0.30367632,66913.0,66904.0,0.00808274]
[1729886325100,0.15422932,66913.0,66904.0,0.00808274]
[1729886325326,0.15422932,66913.0,66904.0,0.00608274]
[1729886326023,0.22450889,66917.0,66905.0,0.005]
[1729886326239,0.300475,66928.0,66905.0,0.005]
[1729886326240,0.22450889,66915.0,66907.0,0.14946]
[1729886326442,0.37873821,66915.0,66907.0,0.14946]
[1729886326681,0.37873821,66915.0,66905.0,0.303931]
[1729886326889,0.37873821,66915.0,66906.0,0.00467734]
[1729886327106,0.37873821,66915.0,66906.0,0.149463]
[1729886327524,0.37873821,66915.0,66907.0,0.00467734]
[1729886327733,0.15422932,66910.0,66905.0,0.005]
[1729886327960,0.15422932,66910.0,66906.0,0.00467734]
[1729886328171,0.15422932,66910.0,66907.0,0.07997734]
[1729886328377,0.15422932,66910.0,66907.0,0.0753]
[1729886329653,0.15422932,66910.0,66908.0,0.00467734]
[1729886329870,0.15422932,66910.0,66907.0,0.0753]
[1729886330075,0.15422932,66914.0,66908.0,0.00467734]
[1729886330281,0.15422932,66914.0,66907.0,0.0753]
[1729886330490,0.15422932,66914.0,66908.0,0.00467734]
[1729886330702,0.15422932,66914.0,66907.0,0.0753]
[1729886330910,0.15422932,66914.0,66908.0,0.00467734]
[1729886331116,0.15422932,66914.0,66907.0,0.0753]
[1729886331326,0.15422932,66910.0,66908.0,0.00467734]
[1729886331567,0.15050381,66924.0,66905.0,0.005]
[1729886331781,0.22450889,66920.0,66910.0,0.149453]
[1729886332021,0.22450889,66920.0,66911.0,0.00766598]
[1729886332238,0.22450889,66920.0,66912.0,0.00467732]
[1729886332482,0.15422932,66922.0,66913.0,0.005]
[1729886332682,0.22450889,66927.0,66919.0,0.01]
[1729886332942,0.22450889,66927.0,66920.0,0.00298824]
[1729886333154,0.22450889,66927.0,66921.0,0.00467674]
[1729886333400,0.22450889,66927.0,66922.0,0.00467674]
[1729886333613,0.15587332,66928.0,66923.0,0.00467674]
[1729886333855,0.15587332,66928.0,66924.0,0.00467674]
[1729886334066,0.15587332,66928.0,66925.0,0.00467674]
[1729886334261,0.001644,66928.0,66921.0,0.149429]
[1729886334523,0.001644,66928.0,66917.0,0.005]
[1729886334524,0.001644,66928.0,66925.0,0.1896]
[1729886334759,0.001644,66928.0,66926.0,0.15708088]
[1729886334961,0.001644,66928.0,66927.0,0.01215687]
[1729886335167,0.22450889,66934.0,66927.0,0.01215687]
[1729886335385,0.22450889,66934.0,66928.0,0.01514482]
[1729886335600,0.22450889,66934.0,66929.0,0.00467593]
[1729886335816,0.000822,66936.0,66930.0,0.00467593]
[1729886336020,0.000822,66936.0,66931.0,0.00467593]
[1729886336235,0.000822,66936.0,66932.0,0.00467593]
[1729886336457,0.000822,66936.0,66929.0,0.00298788]
[1729886336699,0.149408,66931.0,66925.0,0.1846]
[1729886336926,0.22450889,66935.0,66917.0,0.005]
[1729886336927,0.15422932,66926.0,66917.0,0.005]
[1729886337192,0.076,66933.0,66926.0,0.00467605]
[1729886337193,0.29882,66930.0,66926.0,0.00467605]
[1729886337397,0.326,66933.0,66916.0,0.00748212]
[1729886337398,0.14943,66921.0,66916.0,0.00748212]
[1729886337603,0.14943,66921.0,66911.0,0.0833]
[1729886337604,0.149432,66920.0,66912.0,0.00748212]
[1729886337820,0.15422932,66914.0,66913.0,0.00467655]
[1729886338055,0.15422932,66914.0,66903.0,0.1881]
[1729886338257,0.15422932,66908.0,66905.0,0.00967729]
[1729886338460,0.15422932,66912.0,66906.0,0.00467729]
[1729886338676,0.15422932,66912.0,66905.0,0.005]
[1729886338677,0.15422932,66912.0,66907.0,0.00467729]
[1729886338873,0.15422932,66912.0,66905.0,0.005]
[1729886339134,0.15422932,66912.0,66906.0,0.0046774]
[1729886339367,0.15422932,66912.0,66905.0,0.005]
[1729886339543,0.15422932,66912.0,66906.0,0.00467741]
[1729886339794,0.15422932,66912.0,66905.0,0.005]
[1729886340043,0.15422932,66912.0,66906.0,0.00467745]
[1729886340253,0.149465,66905.0,66893.0,0.15449]
[1729886340476,0.149464,66906.0,66899.0,0.005]
[1729886340682,0.149465,66905.0,66899.0,0.005]
[1729886340967,0.149465,66905.0,66896.0,0.000845]
[1729886341200,0.55371232,66897.0,66896.0,0.000845]
[1729886341407,1.05396599,66897.0,66896.0,0.000845]
[1729886341623,0.96456058,66897.0,66896.0,0.000845]
[1729886341858,0.96956058,66897.0,66896.0,0.000845]
[1729886342072,0.399499,66890.0,66889.0,0.000845]
[1729886342283,0.78463213,66890.0,66889.0,0.000845]
[1729886342495,0.85165396,66890.0,66889.0,0.000845]
[1729886342711,0.78463213,66890.0,66889.0,0.000845]
[1729886343354,1.18463213,66890.0,66889.0,0.000845]
[1729886343595,1.22928951,66890.0,66889.0,0.000845]
[1729886344259,1.18463213,66890.0,66889.0,0.000845]
[1729886344716,1.22928951,66890.0,66889.0,0.000845]
[1729886345160,1.34386145,66890.0,66889.0,0.000845]
[1729886345377,1.50662032,66890.0,66889.0,0.000845]
[1729886345591,1.50662032,66890.0,66872.0,0.22535389]
[1729886345592,0.154505,66887.0,66872.0,0.000845]
[1729886345826,0.3719442,66887.0,66872.0,0.000845]
[1729886346107,0.399537,66873.0,66872.0,0.000845]
[1729886346314,0.67793527,66873.0,66872.0,0.000845]
[1729886346532,0.149537,66873.0,66872.0,0.000845]
[1729886347004,0.30376632,66873.0,66872.0,0.000845]
[1729886348299,0.92877902,66873.0,66872.0,0.000845]
[1729886348567,0.70427013,66873.0,66872.0,0.000845]
[1729886349916,0.149539,66872.0,66871.0,0.000846]
[1729886350118,0.70801364,66865.0,66863.0,0.000846]
[1729886350329,0.85851745,66865.0,66863.0,0.000846]
[1729886350553,0.38488295,66865.0,66863.0,0.000846]
[1729886350775,0.78538676,66865.0,66863.0,0.000846]
[1729886351001,0.87849401,66865.0,66863.0,0.000846]
[1729886351222,0.95629401,66865.0,66863.0,0.000846]
[1729886351436,0.86318676,66865.0,66863.0,0.000846]
[1729886351652,0.86973546,66865.0,66863.0,0.000846]
[1729886352564,1.26973546,66865.0,66863.0,0.000846]
[1729886353015,0.38490895,66853.0,66845.0,0.000846]
[1729886354299,0.9952496,66853.0,66845.0,0.000846]
[1729886354515,0.77074071,66853.0,66845.0,0.000846]
[1729886354972,0.9952496,66853.0,66845.0,0.000846]
[1729886355168,1.17074071,66853.0,66845.0,0.000846]
[1729886355837,0.70008481,66853.0,66845.0,0.000846]
[1729886356063,0.78490895,66853.0,66845.0,0.000846]
[1729886356301,0.38490895,66853.0,66845.0,0.000846]
[1729886357001,0.38490895,66853.0,66852.0,0.000912]
[1729886357491,0.149586,66851.0,66845.0,0.000846]
[1729886357718,0.399586,66851.0,66845.0,0.000846]
[1729886357951,1.00992665,66851.0,66845.0,0.000846]
[1729886358167,0.78541776,66851.0,66845.0,0.000846]
[1729886359270,0.63491395,66851.0,66845.0,0.000846]
[1729886360593,0.149586,66851.0,66845.0,0.000846]
[1729886360838,0.4,66855.0,66845.0,0.000846]
[1729886360839,0.4,66855.0,66854.0,0.154579]
[1729886361112,0.4,66855.0,66854.0,0.30708281]
[1729886361326,0.22450889,66867.0,66866.0,0.154552]
[1729886361767,0.22450889,66874.0,66866.0,0.154552]
[1729886361768,0.22450889,66874.0,66873.0,0.005]
[1729886361993,0.22450889,66874.0,66873.0,0.154537]
[1729886362463,0.23532795,66880.0,66875.0,0.005]
[1729886362927,0.23532795,66880.0,66877.0,0.149526]
[1729886363163,0.23532795,66880.0,66875.0,0.007]
[1729886363164,0.23532795,66880.0,66878.0,0.149524]
[1729886363400,0.23532795,66880.0,66875.0,0.005]
[1729886363883,0.45983684,66879.0,66864.0,0.0801]
[1729886364119,0.45983684,66879.0,66860.0,0.005]
[1729886364120,0.23532795,66865.0,66860.0,0.005]
[1729886364362,0.299085,66871.0,66858.0,0.1065]
[1729886364363,0.23532795,66861.0,66858.0,0.1065]
[1729886364591,0.23532795,66861.0,66860.0,0.005]
[1729886364811,0.23532795,66861.0,66858.0,0.25200381]
[1729886365053,0.23532795,66866.0,66861.0,0.005]
[1729886365520,0.149555,66865.0,66859.0,0.005]
[1729886365739,0.53445595,66861.0,66852.0,0.0804]
[1729886365981,0.53445595,66861.0,66853.0,0.15518454]
[1729886366208,0.53445595,66861.0,66853.0,0.15050381]
[1729886366209,0.38489195,66861.0,66853.0,0.15050381]
[1729886366433,0.149566,66860.0,66854.0,0.00468092]
[1729886366681,0.149566,66860.0,66855.0,0.00468092]
[1729886366913,0.149566,66860.0,66850.0,0.000846]
[1729886366914,0.149578,66855.0,66850.0,0.000846]
[1729886367143,0.23532795,66856.0,66851.0,0.00468117]
[1729886367367,0.38490395,66856.0,66850.0,0.000846]
[1729886367635,0.38490395,66856.0,66851.0,0.00468133]
[1729886367873,0.53447995,66856.0,66852.0,0.00468133]
[1729886368134,0.53447995,66856.0,66853.0,0.00468133]
[1729886368135,0.23532795,66856.0,66853.0,0.00468133]
[1729886368370,0.38490495,66856.0,66850.0,0.000846]
[1729886368613,0.38490495,66856.0,66852.0,0.000823]
[1729886368844,0.38490495,66856.0,66853.0,0.00468146]
[1729886369082,0.38490495,66856.0,66852.0,0.000823]
[1729886369083,0.38490495,66856.0,66854.0,0.00468146]
[1729886369323,0.38490495,66856.0,66852.0,0.000823]
[1729886369324,0.23532795,66856.0,66852.0,0.000823]
[1729886369560,0.149579,66854.0,66853.0,0.00468146]
[1729886369817,0.23532795,66856.0,66852.0,0.000823]
[1729886370049,0.149581,66853.0,66852.0,0.000823]
[1729886370293,0.23532795,66856.0,66852.0,0.000823]
[1729886370549,0.149581,66853.0,66852.0,0.000823]
[1729886370791,0.149586,66851.0,66850.0,0.000846]
[1729886371030,0.30008981,66851.0,66850.0,0.000846]
[1729886371273,0.4,66853.0,66850.0,0.000846]
[1729886371731,0.4,66853.0,66851.0,0.00468157]
[1729886371974,0.4,66853.0,66852.0,0.00468157]
[1729886372212,0.23532795,66859.0,66850.0,0.00052757]
[1729886372446,0.22450889,66855.0,66851.0,0.00748995]
[1729886372693,0.22450889,66855.0,66850.0,0.00052757]
[1729886372694,0.149586,66851.0,66850.0,0.00052757]
[1729886372935,0.53448995,66854.0,66850.0,0.00052757]
[1729886373176,0.149586,66851.0,66850.0,0.00052757]
[1729886373936,0.30008981,66851.0,66850.0,0.00052757]
[1729886374167,0.38258981,66851.0,66850.0,0.00052757]
[1729886374409,0.78258981,66851.0,66850.0,0.00052757]
[1729886374661,0.63492495,66846.0,66845.0,0.000846]
[1729886374884,0.78542876,66846.0,66845.0,0.000846]
[1729886375874,0.78732876,66846.0,66845.0,0.000846]
[1729886377314,1.18732876,66846.0,66845.0,0.000846]
[1729886377552,0.25,66838.0,66825.0,0.22950889]
[1729886377807,0.23532795,66827.0,66825.0,0.22950889]
[1729886378059,0.20160696,66827.0,66825.0,0.005]
[1729886378313,0.3750127,66845.0,66814.0,0.383136]
[1729886378314,0.23532795,66832.0,66829.0,0.005]
[1729886378574,0.22450889,66837.0,66835.0,0.005]
[1729886378806,0.22450889,66845.0,66844.0,0.005]
[1729886379251,0.22450889,66845.0,66844.0,0.01249098]
[1729886379493,0.23722795,66846.0,66839.0,0.299223]
[1729886379730,0.23722795,66846.0,66790.0,0.22450889]
[1729886379731,0.23532795,66841.0,66832.0,0.005]
[1729886379999,0.22450889,66845.0,66827.0,0.005]
[1729886380000,0.23532795,66834.0,66827.0,0.005]
[1729886380218,0.299222,66840.0,66828.0,0.25190381]
[1729886380219,0.23532795,66829.0,66828.0,0.25190381]
[1729886380697,0.23532795,66829.0,66828.0,0.24190381]
[1729886380914,0.23532795,66829.0,66828.0,0.15050381]
[1729886381160,0.23532795,66834.0,66828.0,0.15050381]
[1729886381382,0.22450889,66831.0,66829.0,0.00299233]
[1729886381615,0.23532795,66834.0,66829.0,0.00299233]
[1729886381837,0.23532795,66834.0,66825.0,0.000823]
[1729886381838,0.149628,66833.0,66825.0,0.000823]
[1729886382083,0.149642,66826.0,66825.0,0.000823]
[1729886382771,0.38496995,66826.0,66825.0,0.000823]
[1729886383008,0.23532795,66808.0,66807.0,0.045077]
[1729886383265,0.23532795,66808.0,66807.0,0.19558081]
[1729886383505,0.23532795,66808.0,66806.0,0.000846]
[1729886383506,0.149684,66807.0,66806.0,0.000846]
[1729886383727,0.149684,66807.0,66805.0,0.000846]
[1729886383728,0.154687,66806.0,66805.0,0.000846]
[1729886383976,0.159687,66806.0,66805.0,0.000846]
[1729886384211,0.25,66803.0,66787.0,0.02275604]
[1729886384451,0.25,66803.0,66788.0,0.00468577]
[1729886384452,0.149715,66794.0,66788.0,0.00468577]
[1729886384688,0.449121,66797.0,66789.0,0.00468577]
[1729886384926,0.005,66798.0,66787.0,0.15050381]
[1729886385165,0.29938,66805.0,66776.0,0.002]
[1729886385166,0.005,66814.0,66790.0,0.15818372]
[1729886385403,0.005,66814.0,66795.0,0.002]
[1729886385404,0.22450889,66797.0,66795.0,0.002]
[1729886385623,0.37419389,66807.0,66796.0,0.15518965]
[1729886385624,0.37419289,66807.0,66796.0,0.15518965]
[1729886385853,0.22450889,66800.0,66797.0,0.00767946]
[1729886386079,0.37419289,66807.0,66798.0,0.00468584]
[1729886386326,0.23532795,66799.0,66797.0,0.15050381]
[1729886386553,0.23532795,66799.0,66798.0,0.00468523]
[1729886386819,0.22450889,66806.0,66798.0,0.15518904]
[1729886387056,0.23532795,66803.0,66799.0,0.00299356]
[1729886387290,0.23532795,66805.0,66800.0,0.30020281]
[1729886387506,0.45983684,66805.0,66800.0,0.30020181]
[1729886387755,0.45983684,66805.0,66791.0,0.390637]
[1729886387756,0.45983684,66805.0,66791.0,0.0912]
[1729886388006,0.22450889,66815.0,66792.0,0.37800648]
[1729886388007,0.01,66815.0,66792.0,0.37800648]
[1729886388224,0.22450889,66806.0,66795.0,0.299423]
[1729886388471,0.22450889,66806.0,66793.0,0.09809331]
[1729886388472,0.22450889,66806.0,66796.0,0.15050381]
[1729886388695,0.22450889,66806.0,66796.0,0.15349734]
[1729886388974,0.22450889,66806.0,66796.0,0.15050381]
[1729886388975,0.23532795,66797.0,66796.0,0.15050381]
[1729886389203,0.23532795,66797.0,66793.0,0.00299395]
[1729886389440,0.23532795,66795.0,66786.0,0.00299398]
[1729886389709,0.23532795,66795.0,66787.0,0.15800055]
[1729886389929,0.23532795,66790.0,66788.0,0.00299407]
[1729886390158,0.23532795,66790.0,66788.0,0.15349788]
[1729886390412,0.23532795,66790.0,66783.0,0.246085]
[1729886390413,0.22450889,66789.0,66783.0,0.000847]